Cogmind - Beta 11.1 @@@ ROGUE MODE // 2022.07.11 @ 08:36:59 Player: Demise Result: Destroyed by D-53 Grenadier with Mini Grenade Launcher Performance ------------- Evolutions (0) 0 Regions Visited (2) 400 Robots Destroyed (35) 175 Value Destroyed (687) 687 Prototype IDs (4) 80 Alien Tech Used (0) 0 Bonus (121) 121 TOTAL SCORE: 1463 Bonus ------- High Alert Combat Kills 121 Cogmind --------- Core Integrity 0/250 Matter 295/300 Energy 246/250 System Corruption 1% Temperature Cool (0) Movement Rolling (110) Ox2 Location -10/Mines Parts ------- > --- POWER (1) -------- Ion Engine > --- PROPULSION (2) --- Wheel > --- UTILITY (2) ------ Large Storage Unit Seismic Detector > --- WEAPON (2) ------- Light Assault Rifle > --- INVENTORY (15) --- Ion Engine High-capacity Matter Pod (200) Signal Interpreter Targeting Computer Weapon Shielding EM Pulse Gun Medium Laser Light Assault Rifle Light Assault Rifle Grenade Launcher Peak State ------------ > --- POWER ------------ Ion Engine > --- PROPULSION ------- Wheel Wheel > --- UTILITY ---------- Large Storage Unit Weapon Shielding > --- WEAPON ----------- Assault Rifle Light Assault Rifle > --- INVENTORY -------- Wheel Wheel Medium Storage Unit Signal Interpreter Signal Interpreter Seismic Detector Weapon Shielding Medium Laser Light Assault Rifle Grenade Launcher [Rating: 8] Favorites ----------- Power Ion Engine Engine Ion Engine Propulsion Wheel Wheel Wheel Utility Weapon Shielding Device Seismic Detector Storage Large Storage Unit Processor Signal Interpreter Protection Weapon Shielding Weapon Assault Rifle Ballistic Gun Assault Rifle Launcher Grenade Launcher Build | -11 -10 -10 ------- Run | Scr Mat Min Slots Evolved . | . . . Power . | . . . Propulsion . | . . . Utility . | . . . Weapon . | . . . Parts Attached 38 | 3 29 6 Power 5 | . 5 . Engine 5 | . 5 . Core . | . . . Reactor . | . . . Propulsion 9 | . 8 1 Treads . | . . . Leg . | . . . Wheel 9 | . 8 1 Hover . | . . . Flight . | . . . Utility 12 | 1 10 1 Device 4 | 1 2 1 Storage 3 | . 3 . Processor 2 | . 2 . Hackware . | . . . Protection 3 | . 3 . Artifact . | . . . Weapon 12 | 2 6 4 Energy Gun . | . . . Energy Cannon . | . . . Ballistic Gun 8 | 2 4 2 Ballistic Cannon . | . . . Launcher 4 | . 2 2 Special Weapon . | . . . Impact Weapon . | . . . Slashing Weapon . | . . . Piercing Weapon . | . . . Special Melee Weapon . | . . . Unidentified Prototypes . | . . . Parts Lost 8 | . 5 3 Power 2 | . 2 . Propulsion 4 | . 2 2 Utility 1 | . 1 . Weapon 1 | . . 1 Highest Loss Streak 3 | . 2 3 To Critical Strikes . | . . . Average Slot Usage (%) 97 | . 96 100 Engine 13 | . 13 14 Wheel 26 | . 26 28 Device 5 | . 4 12 Storage 12 | . 12 14 Protection 8 | . 10 1 Ballistic Gun 25 | . 25 26 Launcher 1 | . 1 1 Naked Turns . | . . . Heaviest Build 29 | 4 29 29 Greatest Support 20 | 3 20 20 Greatest Overweight (x) 2 | 1 1 2 Average Overweight (x) . | . . 1 Largest Inventory Capacity 15 | 5 15 15 Average Capacity 11 | 5 10 15 Most Carried 12 | 5 12 11 Average Carried 8 | 3 8 10 Final Capacity 15 | 5 15 15 Final Carried 11 | 5 11 10 Class Distribution -------------------- 100% | Mutant Dominant Class ---------------- Mutant | -10/Materials Mutant | -10/Mines Resources | -11 -10 -10 ----------- Run | Scr Mat Min Matter Collected 1089 | 240 715 134 Remotely . | . . . Salvage Created 849 | 25 796 28 Parts 76 | 4 63 9 Haulers Intercepted 1 | . 1 . Recyclers Shooed 1 | . 1 . Parts Field Recycled . | . . . Retrieved Matter . | . . . Parts Self-Destructed . | . . . Prevented . | . . . Kills | -11 -10 -10 ------- Run | Scr Mat Min Combat Hostiles Destroyed 26 | . 20 6 Guns 20 | . 20 . AOE 6 | . . 6 Classes Destroyed 8 | 1 7 . Worker 4 | . 4 . Tunneler 1 | 1 . . Hauler 1 | . 1 . Mechanic 1 | . 1 . Operator 1 | . 1 . Watcher 1 | . 1 . Swarmer 12 | . 6 6 Grunt 14 | . 14 . Best Kill Streak 6 | 1 5 6 Combat Bots Only 6 | . 4 6 Max Kills in Single Turn 3 | 1 1 3 Gunslinging . | . . . Exploded 3 | . . 3 Melee . | . . . Uniques/NPCs Destroyed . | . . . Combat | -11 -10 -10 -------- Run | Scr Mat Min Damage Taken 1017 | . 760 257 Core 265 | . 195 70 Absorbed by Shields . | . . . Redirected to Shielding 78 | . 62 16 Regen/Repaired (Parts) 126 | . 126 . Core Remaining (%) 100 | 100 . . Volleys Fired 111 | 5 102 4 Largest 2 | 2 2 2 Hottest 50 | 40 40 50 Shots Fired 208 | 10 193 5 Gun 193 | 10 182 1 Cannon . | . . . Launcher 15 | . 11 4 Special . | . . . Kinetic 193 | 10 182 1 Thermal . | . . . Explosive 15 | . 11 4 Electromagnetic . | . . . Robot Hit Streak 15 | 3 15 6 Robot Miss Streak 5 | 1 5 1 Penetration Max . | . . . Secondary Targets 4 | . 4 . Max Gunslinging Chain 1 | . 1 . Shots Hit Robots 122 | 6 112 4 Core Hits 49 | 2 41 6 Critical Kills 1 | . 1 . Critical Parts Destroyed 2 | . 2 . Critical Strikes 3 | . 3 . Destroy 3 | . 3 . Melee Attacks . | . . . Impact . | . . . Slashing . | . . . Piercing . | . . . Sneak Attacks . | . . . Combat Hostiles . | . . . Follow-up Attacks . | . . . Damage Inflicted 1710 | 57 1276 377 Guns 1311 | 57 1254 . Cannons . | . . . Explosions 399 | . 22 377 Melee . | . . . Ramming . | . . . Kinetic 1311 | 57 1254 . Thermal . | . . . Explosive 398 | . 21 377 Electromagnetic 1 | . 1 . Impact . | . . . Slashing . | . . . Piercing . | . . . Highest Corruption 1 | . 1 1 Average Corruption 1 | . 1 1 Corruption Purged . | . . . Corruption Blocked . | . . . Effects 6 | . 4 2 Message Errors 2 | . 2 . Matter Fused 1 | . 1 . Heat Flow Errors 1 | . 1 . Energy Discharges 2 | . . 2 Overload Shots . | . . . Overflow Damage 1 | . . 1 Projectiles . | . . . Explosions 1 | . . 1 Melee . | . . . Knockbacks . | . . . Impact . | . . . Kinetic . | . . . Secondary . | . . . Self-Inflicted Damage 76 | . 76 . Shots 3 | . 3 . Rammed . | . . . Targets Rammed . | . . . Kicked . | . . . Crushed . | . . . Highest Temperature 227 | . 227 . Average Temperature 77 | . 77 . Received Heat Transfer 171 | . 171 . Siege Activations . | . . . Robots Corrupted . | . . . Combat Hostiles . | . . . Parts Fried . | . . . Impact Corruptions . | . . . Robots Melted . | . . . Combat Hostiles . | . . . Parts Melted . | . . . Heat Transferred . | . . . Parts Sabotaged . | . . . Parts Stolen . | . . . Parts Stripped . | . . . Power Chain Reactions . | . . . Missiles Intercepted . | . . . Alert | -11 -10 -10 ------- Run | Scr Mat Min Peak Influence 648 | 5 648 414 Initial 220 | . 3 220 Average 421 | . 443 406 Maximum Alert Level 2 | . 2 2 Low Security (%) 15 | 100 16 . Level 1 12 | . 14 7 Level 2 71 | . 68 92 Level 3 . | . . . Level 4 . | . . . Level 5 . | . . . High Security . | . . . Max Security . | . . . Squads Dispatched 6 | . 6 . Investigation 5 | . 5 . Extermination . | . . . Reinforcement 1 | . 1 . Assault . | . . . Garrison . | . . . Intercept . | . . . Searches Triggered . | . . . Construction Impeded . | . . . Haulers Reinforced . | . . . Active Scanning Responses . | . . . Cargo Convoy Interrupts . | . . . Stealth | -11 -10 -10 --------- Run | Scr Mat Min Distress Signals 3 | . 3 . Communications Jammed . | . . . Distress Signals . | . . . Times Spotted 38 | . 30 8 Peak Tracking Total 4 | . 4 3 Tactical Retreats 2 | . 2 . Traps | -11 -10 -10 ------- Run | Scr Mat Min Traps Triggered 2 | . 2 . Indirectly . | . . . Trap Hack Attempts . | . . . Triggered . | . . . Disarmed . | . . . Reprogrammed . | . . . Reused . | . . . Traps Extracted . | . . . Installed . | . . . Triggered . | . . . Machines | -11 -10 -10 ---------- Run | Scr Mat Min Machines Disabled 2 | . 2 . Max in Single Turn 1 | . 1 . Machines Sabotaged . | . . . Garrisons Compromised . | . . . Overloaded Fab Kills . | . . . Hacking | -11 -10 -10 --------- Run | Scr Mat Min Machines Accessed 10 | . 10 . Terminals 7 | . 7 . Fabricators . | . . . Repair Stations 1 | . 1 . Recycling Units 2 | . 2 . Scanalyzers . | . . . Garrison Access . | . . . Total Hacks 41 | . 41 . Successful 25 | . 25 . Failed 15 | . 15 . Catastrophic 1 | . 1 . Database Lockouts 1 | . 1 . Manual 25 | . 25 . Terminals 33 | . 33 . Fabricators . | . . . Repair Stations 4 | . 4 . Recycling Units 4 | . 4 . Scanalyzers . | . . . Garrison Access . | . . . Terminal Hacks 9 | . 9 . Robot Analysis 2 | . 2 . Prototype ID Bank 2 | . 2 . Branch Access Points 1 | . 1 . Terminal Index 1 | . 1 . Locate Traps 2 | . 2 . Recall Investigation 1 | . 1 . Fabricator Hacks . | . . . Repair Station Hacks 4 | . 4 . Scan Component 2 | . 2 . Repair 2 | . 2 . Recycling Unit Hacks 2 | . 2 . Retrieve Components 2 | . 2 . Scanalyzer . | . . . Garrison Access Hacks . | . . . Unauthorized Hacks 10 | . 10 . Terminals 8 | . 8 . Botnet 6 | . 6 . Detonate 1 | . 1 . Operators 1 | . 1 . Fabricators . | . . . Repair Stations . | . . . Recycling Units 2 | . 2 . Tunnel 2 | . 2 . Scanalyzers . | . . . Garrison Access . | . . . Data Cores Recovered . | . . . Used . | . . . Hacking Detections 9 | . 9 . Full Trace Events 4 | . 4 . Feedback Events . | . . . Feedback Blocked . | . . . Robot Schematics Acquired . | . . . Robots Built . | . . . Authchips . | . . . Time . | . . . Total Robot Build Rating . | . . . Part Schematics Acquired . | . . . Parts Built . | . . . Authchips . | . . . Time . | . . . Total Part Build Rating . | . . . Parts Repaired 2 | . 2 . Time 52 | . 52 . Parts Recycled . | . . . Recycled Matter . | . . . Retrieved Matter . | . . . Retrieved Components 3 | . 3 . Parts Scanalyzed . | . . . Part Schematics Acquired . | . . . Parts Damaged . | . . . Bothacking | -11 -10 -10 ------------ Run | Scr Mat Min Used RIF Installer . | . . . Robots Hacked . | . . . Non-combat . | . . . Combat . | . . . Robot Hacks Applied . | . . . Relay Couplers Released . | . . . Fabnet Peak Effective % . | . . . Robots Rewired . | . . . Allies Hacked . | . . . Hacks Repelled . | . . . Allies | -11 -10 -10 -------- Run | Scr Mat Min Total Allies . | . . . Largest Group . | . . . Highest-Rated Group . | . . . Highest-Rated Ally . | . . . Total Orders . | . . . Ally Attacks . | . . . Total Damage . | . . . Kills . | . . . Allies Corrupted . | . . . Allies Melted . | . . . Intel | -11 -10 -10 ------- Run | Scr Mat Min Robot Analysis Total 2 | . 2 . Derelict Logs Recovered 1 | . . 1 Drone Launches . | . . . Drone Recoveries . | . . . Exploration | -11 -10 -10 ------------- Run | Scr Mat Min Turns Passed 1295 | 41 986 268 Spaces Moved 965 | 36 667 262 Core 52 | 36 16 . Treads . | . . . Legs . | . . . Wheels 913 | . 651 262 Hover . | . . . Flight . | . . . Fastest Speed 50 | 50 80 95 Average Speed 87 | 51 86 95 Slowest Speed 110 | 100 100 110 Overloaded Moves . | . . . Propulsion Burnouts . | . . . Robots Hopped . | . . . Cave-ins Triggered . | . . . Exploration Rate (%) 56 | 3 95 70 Regions Visited 2 Branch Regions 1 Pre-discovered Areas 2 | . 2 . Known Exits Taken 1 | . 1 . Unknown Exits Taken 1 | 1 . . Scrap Searched 1 | . . 1 Spaces Dug 40 | . 40 . Terrain Destroyed 94 | . 76 18 Melee . | . . . Projectile . | . . . AOE 94 | . 76 18 Terrain Rammed . | . . . Walls Destroyed . | . . . Machines Disabled . | . . . Actions | -11 -10 -10 --------- Run | Scr Mat Min Total 1219 | 48 897 274 Wait 81 | . 81 . Move 963 | 35 666 262 Hop . | . . . Pick Up 16 | 5 10 1 Fast Attach 10 | 3 7 . Attach 9 | . 8 1 Detach 3 | . 3 . Swap 19 | . 14 5 Drop 7 | . 6 1 Fire 111 | 5 102 4 Melee . | . . . Ram . | . . . Kick . | . . . Crush . | . . . Escape Stasis . | . . . Rewire . | . . . Trap . | . . . Miscellaneous . | . . . Route ------- -11/Scrapyard -10/Materials (discovered 4 exits: *Mat x3 / *Min) -10/Mines (discovered 2 exits: *Mat x2) History --------- Turn | Location | Event 7 | -11/Scrapyard | Discovered new exit (range 16) 42 | -11/Scrapyard | Entered Materials 68 | -10/Materials | Identified exit to Mines 87 | -10/Materials | Central database locked down 300 | -10/Materials | Build established: Mutant 448 | -10/Materials | Discovered new exit (range 14) 596 | -10/Materials | Core integrity fell below 50% 614 | -10/Materials | Discovered new exit (range 16) 767 | -10/Materials | Repaired Assault Rifle 794 | -10/Materials | Repaired Lgt. Assault Rifle 919 | -10/Materials | Discovered new exit (range 16) 936 | -10/Materials | Identified exit to Materials 1028 | -10/Materials | Entered Mines 1030 | -10/Mines | Core integrity fell below 20% 1104 | -10/Mines | Discovered exit to Materials (range 8) 1169 | -10/Mines | Learned Materials garrison access intel 1292 | -10/Mines | Assembled infested the area 1293 | -10/Mines | Discovered exit to Materials (range 5) 1296 | -10/Mines | Destroyed by D-53 Grenadier with Mini Grenade Launcher Last Messages --------------- 01221_ Found Targeting Computer. 01221_ Found ECM Suite. 01221_ Found 24 Matter. 01240_ K-01 Serf collects debris. 01265_ U-05 Engineer builds a Wall. 01266_ System corrupted: Energy discharge (-92). 01270_ U-05 Engineer builds a Wall. 01275_ K-01 Serf collects debris. 01292_ ALERT: Infestation in the mines, dispatching Demolisher response squad. 01293_ EXIT=FOUND: MATERIALS 01293_ C-30 ARC bursts open, deploying its payload. 01293_ D-53 Grenadier unfolds itself. 01293_ Wheel destroyed. 01294_ Assault Rifle destroyed. 01294_ K-01 Serf collects debris. 01295_ K-01 Serf destroyed. 01296_ PS-C2M(h): "I'll hold them off! Go on ahead or try to find another way!" 01296_ HV Slug penetrates D-53 Grenadier. 01296_ D-53 Grenadier knocked back. 01296_ HV Slug penetrates D-53 Grenadier. Map ----- +----------------------------------------------------+ | ??????????????????????????# #?????# #?????????? | | ????????????????????????? ??????# #?????????? | | ???????????????????????# ???????# !#?????????? | | ??????????????????????# ???????#%!#?????????? | | ????????????????????? ????????# #?????????? | | ????????????????????## #????????# #?????????? | | ?????????????????????## #?????????# #?????????? | | ??????????????????????##???????????# #?????????? | | ??????????????????????????????????## ###????#### | | ?????????????????????????????????## ###?## | | ?????????????????????????????????# ### | | ?????????????????????????????????# | | ?????????????????????????????????# | | ???????????????????????????# ######## | | ???????????????????????????# ####??????## | | ???????????????????????????#########??????????## | | ?????????????????????????????????????????????## | | ?????????????????????????????????????????????# | | ??????????????????????????###????????????????# | | ????????????????????????## ##???????????????## | | ????????????????????????# ##???????????????### | | ???????????????????????## ##????????????????# | | ?????????????????????### k #????????????????# | | ?????????????????????# d< ################## | | ?????????????????????#%% #?# | | ?????????????????????#=d@h #?# | | ??????????????????#### ### ############# | | ????????????????# #???????????## | | ????????????????#### #????????????# | | ???????????????????# ######????????????? | | ???????????????????## #?????????????????? | | ????????????????????#### ####?????????????????? | | ???????????????????????#####????????????????????? | | ????????????????????????????????????????????????? | | | | | | | | | | | | | | | | | | | | | | | | | | | | | | | | | +----------------------------------------------------+ Best States ------------- Heat Dissipation 25 Energy Generation 10 Energy Capacity 250 Matter Stores 300 Matter Capacity 300 Sight Range 16 Terrain Scan Density 10 Weapon Shielding 33 Evasion (%) 50 Item Schematics ----------------- None Robot Schematics ------------------ None Fabricated ------------ Nothing Alien Tech Used ----------------- None Achievements -------------- None Challenges ------------ None Game ------ Seed GhostAluminumThermoblaster Manual? 0 Play Time 00:13:38 Cumulative 664.2 hours Start 2022.07.11 @ 08:23:46 End 2022.07.11 @ 08:36:59 Sessions 1 Manual Loads 0 Difficulty Rogue Special Mode None Game No. 552 Rogue 552 Adventurer 0 Explorer 0 Win Type - Total 8 Types 7/0/0/1/0/0/0/0/0 Lore% 75 Gallery% 86 Achievement% 69 Wizard Run 0 Options --------- ASCII 0 Keyboard 1 Movement Numpad Keybinds 0 Fullscreen 1 Font 12/Terminus Map View 83x54 Tactical HUD 1 Map Filters NONE Filters NONE Steam 1 RUN: c25e3c6c-6801-428f-b0df-c4e7509ba32b